bitfinex/quotes_BTCUSD_20230405
["timestamp","ask_amount","ask_price","bid_price","bid_amount"]
[1680730597572,0.03059571,28170.0,28169.0,0.12763658]
[1680730598008,0.03059571,28170.0,28169.0,0.17018211]
[1680730598165,0.03059571,28170.0,28169.0,0.35471056]
[1680730598365,0.00021,28173.0,28169.0,0.70991056]
[1680730598561,0.00021,28174.0,28170.0,0.35471056]
[1680730598811,0.003,28171.0,28170.0,0.49660737]
[1680730599011,0.00021,28175.0,28170.0,0.65471056]
[1680730599224,0.002,28173.0,28170.0,1.10150852]
[1680730599425,0.00021,28175.0,28170.0,0.95961171]
[1680730599623,0.00021,28175.0,28170.0,1.12150852]
[1680730599999,0.00021,28179.0,28171.0,0.78263115]
[1680730600265,0.00021,28179.0,28172.0,0.49660737]
[1680730600505,0.0314088,28174.0,28172.0,0.49660737]
[1680730600743,0.0314088,28174.0,28173.0,0.17746]
[1680730601361,0.00021,28177.0,28173.0,0.17746]
[1680730601567,0.00021,28178.0,28173.0,0.17746]
[1680730601769,0.00021,28178.0,28173.0,0.31935681]
[1680730602447,0.03149026,28177.0,28173.0,0.17746]
[1680730602662,0.03170026,28177.0,28173.0,0.17846]
[1680730602879,0.03170026,28177.0,28174.0,0.35471056]
[1680730603089,0.03149026,28177.0,28174.0,0.70991056]
[1680730603276,0.00021,28179.0,28174.0,0.70991056]
[1680730603552,0.00021,28179.0,28174.0,0.85180737]
[1680730603769,0.00021,28180.0,28174.0,0.85180737]
[1680730603993,0.00021,28180.0,28178.0,0.17744]
[1680730604414,0.03153881,28179.0,28178.0,0.17744]
[1680730604622,0.03174881,28179.0,28178.0,0.17744]
[1680730605048,0.03174881,28179.0,28178.0,0.19144]
[1680730605472,0.00021,28179.0,28178.0,0.19144]
[1680730605896,0.02387001,28181.0,28178.0,0.17744]
[1680730606126,0.02387001,28181.0,28178.0,0.19144]
[1680730606338,0.02408001,28181.0,28178.0,0.19144]
[1680730606553,0.02408001,28181.0,28178.0,0.54615056]
[1680730606975,0.02387001,28181.0,28179.0,0.3]
[1680730607407,0.02104714,28180.0,28179.0,0.3]
[1680730608058,0.02104714,28180.0,28179.0,0.307]
[1680730608276,0.02104714,28180.0,28179.0,0.3]
[1680730608491,0.02387001,28181.0,28179.0,0.31080806]
[1680730608962,0.02387001,28181.0,28180.0,0.35471056]
[1680730611990,0.02387001,28181.0,28180.0,0.38171056]
[1680730612841,0.02387001,28181.0,28180.0,0.35471056]
[1680730613017,0.02387001,28181.0,28180.0,0.38271056]
[1680730613232,0.02387001,28181.0,28180.0,0.35471056]
[1680730613439,0.02387001,28181.0,28180.0,0.38171056]
[1680730613649,0.02387001,28181.0,28180.0,0.35471056]
[1680730613862,0.02387001,28181.0,28180.0,0.38271056]
[1680730614064,0.02387001,28181.0,28180.0,0.41815599]
[1680730614276,0.02387001,28181.0,28180.0,0.74535599]
[1680730614907,0.02387001,28181.0,28180.0,0.77235599]
[1680730616360,0.04492804,28181.0,28180.0,0.77235599]
[1680730616571,0.04485327,28181.0,28180.0,0.77235599]
[1680730616786,0.04485327,28181.0,28180.0,0.74535599]
[1680730616994,0.04485327,28181.0,28180.0,0.77335599]
[1680730617205,0.04485327,28181.0,28180.0,0.74535599]
[1680730617409,0.02379524,28181.0,28180.0,0.77335599]
[1680730618243,0.02379524,28181.0,28180.0,1.07335599]
[1680730618454,0.02379524,28181.0,28180.0,1.07347599]
[1680730618658,0.02379524,28181.0,28180.0,1.07353599]
[1680730621656,0.02329524,28181.0,28180.0,1.07335599]
[1680730624876,0.02329524,28181.0,28180.0,1.25074599]
[1680730625249,0.02329524,28181.0,28180.0,1.07711662]
[1680730625653,0.02329524,28181.0,28180.0,1.25077599]
[1680730626058,0.02329524,28181.0,28180.0,1.07473267]
[1680730628672,0.02329524,28181.0,28180.0,0.54211267]
[1680730630148,0.02329524,28181.0,28180.0,0.50666724]
[1680730631043,0.02329524,28181.0,28180.0,0.33196131]
[1680730631240,0.02329524,28181.0,28180.0,0.03196131]
[1680730632545,0.02329524,28181.0,28180.0,0.00396131]
[1680730632878,0.02329524,28181.0,28180.0,0.03196131]
[1680730633590,0.02329524,28181.0,28180.0,0.00396131]
[1680730633792,0.02329524,28181.0,28180.0,0.01796131]
[1680730633991,0.02329524,28181.0,28180.0,0.00396131]
[1680730634228,0.02329524,28181.0,28180.0,0.01796131]
[1680730634409,0.02329524,28181.0,28180.0,0.014]
[1680730634795,0.40584644,28181.0,28180.0,0.014]
[1680730634924,0.769057,28181.0,28180.0,0.014]
[1680730635341,0.76200615,28181.0,28175.0,0.00373576]
[1680730635538,0.055115,28179.0,28175.0,0.00373576]
[1680730635736,0.055115,28179.0,28176.0,0.00384499]
[1680730635961,0.054994,28178.0,28176.0,0.00384499]
[1680730636173,0.101818,28179.0,28176.0,0.00384499]
[1680730636343,0.055307,28178.0,28176.0,0.00384499]
[1680730636757,0.055307,28178.0,28176.0,0.001]
[1680730636958,0.4212926,28177.0,28169.0,0.3552]
[1680730637197,0.4215026,28177.0,28176.0,0.001]
[1680730637559,0.4742746,28177.0,28176.0,0.001]
[1680730637763,0.4215026,28177.0,28176.0,0.001]
[1680730639233,0.4215026,28177.0,28173.0,0.00356522]
[1680730639410,0.36476683,28176.0,28173.0,0.00356522]
[1680730639738,0.36497683,28176.0,28173.0,0.00356522]
[1680730640267,0.36497683,28176.0,28173.0,0.02356522]
[1680730641168,0.36497683,28176.0,28173.0,0.02]
[1680730642781,0.39302743,28175.0,28173.0,0.02]
[1680730642982,0.39323743,28175.0,28173.0,0.02]
[1680730643579,0.39323743,28175.0,28172.0,0.00389541]
[1680730643790,0.39323743,28175.0,28171.0,0.3]
[1680730643951,0.39323743,28175.0,28171.0,0.30366408]
[1680730644352,0.39323743,28175.0,28171.0,0.30378408]
[1680730644748,0.39323743,28175.0,28171.0,0.30366408]
[1680730644949,0.39323743,28175.0,28173.0,0.02]
[1680730645150,0.39323743,28175.0,28172.0,0.00386688]
[1680730646165,0.39323743,28175.0,28173.0,0.02]
[1680730646376,0.39323743,28175.0,28172.0,0.00386688]
[1680730646575,0.39302743,28175.0,28172.0,0.03086688]
[1680730646833,0.39302743,28175.0,28172.0,0.00386688]
[1680730647239,0.39323743,28175.0,28172.0,0.00386688]
[1680730648306,0.39323743,28175.0,28173.0,0.02]
[1680730648507,0.39323743,28175.0,28172.0,0.00386688]
[1680730649307,0.39323743,28175.0,28172.0,0.03086688]
[1680730650218,0.39323743,28175.0,28173.0,0.00363954]
[1680730650862,0.00021,28175.0,28173.0,0.18110954]
[1680730651067,0.00021,28176.0,28173.0,0.18110954]
[1680730651204,0.00021,28176.0,28173.0,0.48110954]
[1680730651404,0.36804942,28176.0,28173.0,0.48110954]
[1680730651831,0.36804942,28176.0,28173.0,0.50110954]
[1680730652747,0.36804942,28176.0,28174.0,0.00369171]
[1680730653172,0.00021,28176.0,28174.0,0.00369171]
[1680730653386,0.33169654,28178.0,28174.0,0.00369171]
[1680730653596,0.33190654,28178.0,28174.0,0.00369171]
[1680730653807,0.33487108,28177.0,28174.0,0.00369171]
[1680730654017,0.33508108,28177.0,28174.0,0.00369171]
[1680730654926,0.33508108,28177.0,28174.0,0.18115171]
[1680730655146,0.33508108,28177.0,28174.0,0.49515171]
[1680730655363,0.00021,28177.0,28174.0,0.48115171]
[1680730655598,0.40612829,28179.0,28175.0,0.00392898]
[1680730655780,0.40633829,28179.0,28175.0,0.00392898]
[1680730656013,0.42459904,28178.0,28175.0,0.00392898]
[1680730656197,0.42480904,28178.0,28175.0,0.00392898]
[1680730657249,0.42480904,28178.0,28175.0,0.01092898]
[1680730657454,0.42480904,28178.0,28175.0,0.00392898]
[1680730657867,0.42480904,28178.0,28175.0,0.01092898]
[1680730659387,0.39689669,28177.0,28175.0,0.007]
[1680730659600,0.39710669,28177.0,28175.0,0.007]
[1680730660441,0.39710669,28177.0,28173.0,0.0039196]
[1680730660880,0.45323454,28176.0,28175.0,0.007]
[1680730661083,0.45344454,28176.0,28175.0,0.007]
[1680730661518,0.45344454,28176.0,28173.0,0.0039196]
[1680730661698,0.45344454,28176.0,28175.0,0.007]
[1680730662751,0.00021,28176.0,28175.0,0.007]
[1680730662954,0.32947061,28180.0,28175.0,0.01083019]
[1680730663190,0.39165952,28179.0,28175.0,0.152727]
[1680730663376,0.39186952,28179.0,28175.0,0.01083019]
[1680730663578,0.33542631,28178.0,28175.0,0.01083019]
[1680730663783,0.33563631,28178.0,28175.0,0.01083019]
[1680730664025,0.41157423,28177.0,28175.0,0.00383019]
[1680730664236,0.41178423,28177.0,28175.0,0.00383019]
[1680730664687,0.41178423,28177.0,28175.0,0.01083019]
[1680730664897,0.41178423,28177.0,28175.0,0.00383019]
[1680730665098,0.41178423,28177.0,28175.0,0.01083019]
[1680730665584,0.00021,28177.0,28175.0,0.01083019]
[1680730665829,0.32356248,28178.0,28175.0,0.01083019]
[1680730666029,0.32377248,28178.0,28175.0,0.01083019]
[1680730666910,0.32377248,28178.0,28175.0,0.00383019]
[1680730667119,0.32377248,28178.0,28175.0,0.01083019]
[1680730668157,0.32377248,28178.0,28175.0,0.007]
[1680730668572,0.41537678,28177.0,28175.0,0.007]
[1680730668778,0.41558678,28177.0,28175.0,0.007]
[1680730669374,0.41558678,28177.0,28173.0,0.00361781]
[1680730669517,0.41558678,28177.0,28175.0,0.007]
[1680730675873,0.3910737,28176.0,28175.0,0.007]
[1680730676071,0.3912837,28176.0,28175.0,0.007]
[1680730676993,0.3912837,28176.0,28174.0,0.43105978]
[1680730677220,0.3912837,28176.0,28175.0,0.007]
[1680730678437,0.3912837,28176.0,28175.0,0.13443115]
[1680730678662,0.3912837,28176.0,28175.0,0.13563115]
[1680730679257,0.00021,28176.0,28175.0,0.13563115]
[1680730679464,0.44079596,28180.0,28175.0,0.31688749]
[1680730679681,0.44079596,28180.0,28175.0,0.62896641]
[1680730680090,0.44079596,28180.0,28176.0,0.12743115]
[1680730680308,0.35541025,28179.0,28177.0,0.12743115]
[1680730680513,0.35562025,28179.0,28177.0,0.12743115]
[1680730680951,0.35562025,28179.0,28176.0,0.29761326]
[1680730681149,0.40526585,28178.0,28176.0,0.29761326]
[1680730681357,0.40547585,28178.0,28177.0,0.12743115]
[1680730681789,0.00021,28178.0,28177.0,0.12743115]
[1680730682001,0.38212623,28179.0,28177.0,0.12873115]
[1680730682209,0.38233623,28179.0,28177.0,0.0013]
[1680730682413,0.004,28178.0,28177.0,0.0013]
[1680730682616,0.00421,28178.0,28177.0,0.0013]
[1680730683039,0.00021,28178.0,28177.0,0.0013]
[1680730683406,0.00021,28178.0,28177.0,0.0023]
[1680730684996,0.42545256,28178.0,28177.0,0.0023]
[1680730685207,0.47794956,28178.0,28177.0,0.0023]
[1680730686083,0.47794956,28178.0,28177.0,0.0013]
[1680730686289,0.47794956,28178.0,28175.0,0.29761326]
[1680730686506,0.33937922,28177.0,28175.0,0.29761326]
[1680730686683,0.33958922,28177.0,28176.0,0.12743115]
[1680730686815,0.39342522,28177.0,28176.0,0.12743115]
[1680730687030,0.33958922,28177.0,28176.0,0.12743115]
[1680730688065,0.33958922,28177.0,28176.0,0.12843115]
[1680730693351,0.39279622,28177.0,28176.0,0.12843115]
[1680730693587,0.33958922,28177.0,28176.0,0.12843115]
[1680730696109,0.39099922,28177.0,28176.0,0.12843115]
[1680730696320,0.33958922,28177.0,28176.0,0.12843115]
[1680730701505,0.69429978,28177.0,28176.0,0.001]
[1680730701724,0.41473556,28177.0,28176.0,0.001]
[1680730701938,0.81435223,28177.0,28176.0,0.001]
[1680730702154,0.86075113,28177.0,28176.0,0.001]
[1680730702363,0.43247956,28177.0,28176.0,0.001]
[1680730702626,0.43247956,28177.0,28172.0,0.12743115]
[1680730702627,0.56728508,28177.0,28171.0,0.12743115]
[1680730702838,0.16525952,28177.0,28176.0,0.001]
[1680730703022,0.16525952,28177.0,28171.0,0.12743115]
[1680730703023,0.0085,28176.0,28171.0,0.12743115]
[1680730703269,0.40485056,28175.0,28171.0,0.12743115]
[1680730703479,0.112044,28174.0,28171.0,0.12743115]
[1680730703731,0.112044,28174.0,28170.0,0.17376659]
[1680730703732,0.41110356,28173.0,28170.0,0.13101563]
[1680730703958,0.0085,28172.0,28170.0,0.13101563]
[1680730704183,0.00871,28172.0,28170.0,0.13101563]
[1680730704605,0.00871,28172.0,28171.0,0.001]
[1680730704835,0.064472,28172.0,28171.0,0.001]
[1680730705042,0.4589965,28172.0,28171.0,0.001]
[1680730705465,0.4589965,28172.0,28168.0,0.13120594]
[1680730705683,0.35471056,28171.0,28170.0,0.007]
[1680730705897,0.35471056,28171.0,28168.0,0.00377479]
[1680730705898,0.41704656,28171.0,28168.0,0.00377479]
[1680730706117,0.0085,28170.0,28168.0,0.00377479]
[1680730706323,0.36342056,28170.0,28168.0,0.00377479]
[1680730706758,0.35471056,28169.0,28168.0,0.00377479]
[1680730706967,0.36342056,28169.0,28168.0,0.00377479]
[1680730707384,0.36342056,28169.0,28166.0,0.12743115]
[1680730707590,0.36342056,28169.0,28166.0,0.13124524]
[1680730707813,0.36342056,28169.0,28166.0,0.00381409]
[1680730708819,0.36742056,28169.0,28166.0,0.00381409]
[1680730709061,0.0085,28168.0,28166.0,0.00381409]
[1680730709269,0.00871,28168.0,28166.0,0.01081409]
[1680730710102,0.00871,28168.0,28166.0,0.00381409]
[1680730710396,0.00871,28168.0,28166.0,0.01081409]
[1680730710949,0.36342056,28168.0,28166.0,0.007]
[1680730711153,0.35653042,28167.0,28166.0,0.007]
[1680730711355,0.36524042,28167.0,28166.0,0.007]
[1680730711582,0.71995098,28167.0,28166.0,0.007]
[1680730711812,0.77194598,28167.0,28166.0,0.007]
[1680730712459,0.77194598,28167.0,28164.0,0.00362629]
[1680730712647,0.41683056,28166.0,28164.0,0.00362629]
[1680730712847,0.36342056,28166.0,28164.0,0.00362629]
[1680730713815,0.36342056,28166.0,28164.0,0.01762629]
[1680730714048,0.36342056,28166.0,28164.0,0.00362629]
[1680730714315,0.36342056,28166.0,28164.0,0.014]
[1680730714550,0.36342056,28166.0,28161.0,2.27281326]
[1680730714786,0.36342056,28166.0,28162.0,0.12743115]
[1680730715240,0.36342056,28166.0,28163.0,0.00374135]
[1680730715707,0.36342056,28166.0,28164.0,0.001]
[1680730715947,0.36342056,28166.0,28163.0,0.00374135]
[1680730716197,0.36342056,28166.0,28163.0,0.01074135]
[1680730716451,0.36342056,28166.0,28163.0,0.00374135]
[1680730716624,0.36342056,28166.0,28164.0,0.001]
[1680730716874,0.00021,28166.0,28164.0,0.001]
[1680730717111,0.00021,28166.0,28163.0,0.00374135]
[1680730717343,0.35674042,28167.0,28163.0,0.01074135]
[1680730717575,0.71145098,28167.0,28163.0,0.00374135]
[1680730718074,0.0085,28166.0,28163.0,0.00374135]
[1680730718313,0.00871,28166.0,28163.0,0.00374135]
[1680730718552,0.00871,28166.0,28164.0,0.001]
[1680730718782,0.00871,28166.0,28163.0,0.00374135]
[1680730719498,0.00871,28166.0,28163.0,0.01074135]
[1680730719732,0.00871,28166.0,28163.0,0.00374135]
[1680730719961,0.00871,28166.0,28163.0,0.01074135]
[1680730720194,0.00871,28166.0,28163.0,0.00374135]
[1680730720419,0.00871,28166.0,28163.0,0.01074135]
[1680730723371,0.00871,28166.0,28164.0,0.0037158]
[1680730724602,0.0085,28166.0,28161.0,0.12743115]
[1680730724861,0.0085,28166.0,28164.0,0.001]
[1680730725568,0.0085,28166.0,28160.0,0.32099326]
[1680730725776,0.0085,28166.0,28161.0,0.02]
[1680730726389,0.0085,28166.0,28160.0,0.32099326]
[1680730726596,0.0085,28166.0,28160.0,0.32093326]
[1680730727010,0.0085,28166.0,28160.0,0.46283007]
[1680730728437,0.0085,28166.0,28164.0,0.001]
[1680730728648,0.0085,28166.0,28160.0,0.29270796]
[1680730728860,0.0085,28166.0,28160.0,0.17075115]
[1680730729063,0.0085,28166.0,28160.0,0.31252796]
[1680730729220,0.0085,28166.0,28160.0,0.61264796]
[1680730731654,0.0085,28166.0,28160.0,0.78283007]
[1680730732610,0.0085,28166.0,28161.0,0.12743115]
[1680730732806,0.0085,28166.0,28161.0,0.26932796]
[1680730733103,0.0085,28166.0,28161.0,0.12743115]
[1680730734277,0.0085,28166.0,28161.0,0.14143115]
[1680730736444,0.0085,28166.0,28161.0,0.31161326]
[1680730737175,0.75261239,28165.0,28161.0,0.14143115]
[1680730737373,0.0085,28164.0,28163.0,0.0066]
[1680730737606,0.41437356,28164.0,28163.0,0.0066]
[1680730738424,0.36321056,28164.0,28163.0,0.0076]
[1680730742671,0.81180696,28164.0,28163.0,0.0076]
[1680730742874,0.86451196,28164.0,28163.0,0.0076]
[1680730743081,0.86430196,28164.0,28163.0,0.0076]
[1680730743665,0.86430196,28164.0,28163.0,0.0066]
[1680730743864,0.86451196,28164.0,28163.0,0.0066]
[1680730744065,0.86451196,28164.0,28163.0,0.0076]
[1680730744271,0.81201696,28164.0,28163.0,0.0076]
[1680730744468,0.81201696,28164.0,28163.0,0.0066]
[1680730745848,0.81201696,28164.0,28163.0,0.0076]
[1680730747111,0.81201696,28164.0,28163.0,0.0066]
[1680730747320,0.81201696,28164.0,28163.0,0.0076]
[1680730747494,0.81201696,28164.0,28163.0,0.0066]
[1680730747704,0.81201696,28164.0,28163.0,0.13503115]
[1680730747913,0.36342056,28164.0,28163.0,0.13503115]
[1680730748805,0.36342056,28164.0,28163.0,0.13403115]
[1680730749022,0.36342056,28164.0,28163.0,0.30521326]
[1680730749223,0.36342056,28164.0,28163.0,0.30421326]
[1680730749337,0.36342056,28164.0,28163.0,0.13503115]
[1680730749533,0.36342056,28164.0,28163.0,0.17778211]
[1680730750365,0.36342056,28164.0,28163.0,0.02976589]
[1680730752173,0.00021,28164.0,28163.0,0.02976589]
[1680730752385,0.44310058,28165.0,28163.0,0.02976589]
[1680730752597,0.44310058,28165.0,28164.0,0.12758561]
[1680730752805,0.45160058,28165.0,28164.0,0.12758561]
[1680730754373,0.00871,28165.0,28164.0,0.12758561]
[1680730754573,0.0085,28165.0,28164.0,0.12758561]
[1680730755061,0.006,28165.0,28164.0,0.12758561]
[1680730755518,0.0145,28165.0,28164.0,0.12758561]
[1680730755904,0.0145,28165.0,28163.0,0.21642764]
[1680730756145,0.0145,28165.0,28164.0,0.12761273]
[1680730756349,0.0085,28165.0,28164.0,0.12761273]
[1680730756555,0.0085,28165.0,28164.0,0.13461273]
[1680730757697,0.0085,28165.0,28164.0,0.12761273]
[1680730758418,0.0085,28165.0,28164.0,0.29878166]
[1680730758636,0.00871,28165.0,28164.0,0.29878166]
[1680730760169,0.00871,28165.0,28164.0,0.17116893]
[1680730760303,0.0085,28165.0,28164.0,0.17116893]
[1680730761303,0.0085,28165.0,28164.0,0.29879571]
[1680730761519,0.00871,28165.0,28164.0,0.29879571]
[1680730762103,0.00871,28165.0,28164.0,0.17116893]
[1680730762304,0.0085,28165.0,28164.0,0.17116893]
[1680730765114,0.3993287,28165.0,28164.0,0.29879565]
[1680730766574,0.3993287,28165.0,28164.0,0.29891565]
[1680730767342,0.3993287,28165.0,28164.0,0.29879565]
[1680730767758,0.00871,28165.0,28164.0,0.17116893]
[1680730767958,0.0085,28165.0,28164.0,0.17116893]
[1680730768176,0.36321056,28165.0,28164.0,0.2987981]
[1680730768365,0.41752456,28165.0,28164.0,0.17286893]
[1680730769328,0.36342056,28165.0,28164.0,0.30050027]
[1680730769550,0.36342056,28165.0,28164.0,0.30062027]
[1680730770044,0.36342056,28165.0,28164.0,0.30050027]
[1680730770755,0.36342056,28165.0,28164.0,0.17286893]
[1680730770978,0.41820256,28165.0,28164.0,0.30050205]
[1680730771191,0.36342056,28165.0,28164.0,0.17286893]
[1680730771408,0.41831556,28165.0,28164.0,0.17286893]
[1680730771619,0.36342056,28165.0,28164.0,0.17286893]
[1680730771828,0.36342056,28165.0,28164.0,0.30050817]
[1680730772258,0.36342056,28165.0,28164.0,0.17286893]
[1680730772877,0.36342056,28165.0,28164.0,0.17186893]
[1680730773081,0.36342056,28165.0,28164.0,0.17286893]
[1680730773333,0.36342056,28165.0,28164.0,0.17186893]
[1680730773522,0.36342056,28165.0,28164.0,0.17286893]
[1680730781710,0.36342056,28165.0,28164.0,0.38559657]
[1680730782046,0.36342056,28165.0,28164.0,0.38571657]
[1680730782229,0.36342056,28165.0,28164.0,0.38559657]
[1680730782686,0.36342056,28165.0,28164.0,0.17286893]
[1680730783834,0.36342056,28165.0,28164.0,0.38559657]
[1680730787498,0.36342056,28165.0,28164.0,0.21542764]
[1680730787917,0.36342056,28165.0,28164.0,0.38569095]
[1680730788136,0.36342056,28165.0,28164.0,0.38581095]
[1680730788369,0.36342056,28165.0,28164.0,0.38569095]
[1680730789987,0.36342056,28165.0,28164.0,0.17296331]
[1680730792232,0.36342056,28165.0,28164.0,0.17196331]
[1680730793353,0.36342056,28165.0,28164.0,0.17296331]
[1680730797579,0.36342056,28165.0,28164.0,0.17196331]
[1680730797783,0.36342056,28165.0,28164.0,0.17296331]
[1680730797978,0.36342056,28165.0,28164.0,0.17196331]
[1680730798185,0.36342056,28165.0,28164.0,0.17296331]
[1680730803578,0.36342056,28165.0,28164.0,0.17196331]
[1680730803786,0.36342056,28165.0,28164.0,0.17296331]
[1680730803995,0.36342056,28165.0,28164.0,0.17196331]
[1680730804205,0.36342056,28165.0,28164.0,0.17296331]
[1680730805822,0.36342056,28165.0,28164.0,0.17196331]
[1680730806030,0.36342056,28165.0,28164.0,0.17296331]
[1680730806237,0.36342056,28165.0,28164.0,0.17196331]
[1680730806442,0.36342056,28165.0,28164.0,0.17296331]
[1680730806866,0.36342056,28165.0,28164.0,0.17196331]
[1680730807073,0.01471,28165.0,28164.0,0.17196331]
[1680730807275,0.0145,28165.0,28164.0,0.17196331]
[1680730808211,0.006,28165.0,28164.0,0.38469095]
[1680730808624,0.006,28165.0,28164.0,0.3846883]
[1680730808855,0.006,28165.0,28164.0,0.38468832]
[1680730809064,0.006,28165.0,28164.0,0.21442764]
[1680730809268,0.006,28165.0,28164.0,0.384689]
[1680730809485,0.006,28165.0,28164.0,0.21821551]
[1680730809711,0.006,28165.0,28164.0,0.0609547]
[1680730810918,0.006,28165.0,28164.0,0.23121577]
[1680730811324,0.006,28165.0,28164.0,0.0609547]
[1680730811520,0.006,28165.0,28164.0,0.23121284]
[1680730811728,0.006,28165.0,28164.0,0.23121446]
[1680730812129,0.006,28165.0,28164.0,0.0609547]
[1680730812550,0.006,28165.0,28164.0,0.23121315]
[1680730812755,0.006,28165.0,28164.0,0.0609547]
[1680730812954,0.006,28165.0,28164.0,0.23121376]
[1680730813128,0.006,28165.0,28164.0,0.23121253]
[1680730813329,0.006,28165.0,28164.0,0.2312138]
[1680730813557,0.006,28165.0,28164.0,0.0609547]
[1680730814105,0.006,28165.0,28164.0,0.23121319]
[1680730814310,0.006,28165.0,28164.0,0.0609547]
[1680730814489,0.006,28165.0,28164.0,0.2312117]
[1680730814946,0.006,28165.0,28164.0,0.183257]
[1680730819636,0.006,28165.0,28164.0,0.39607988]
[1680730819952,0.006,28165.0,28164.0,0.183257]
[1680730823756,0.006,28165.0,28164.0,0.183257]
[1680730825325,0.44906062,28168.0,28164.0,0.183257]
[1680730825530,0.44906062,28168.0,28165.0,0.12769191]
[1680730826572,0.00021,28168.0,28165.0,0.12769191]
[1680730826798,0.00871,28168.0,28165.0,0.12769191]
[1680730827393,0.0145,28168.0,28165.0,0.12769191]
[1680730828728,0.0145,28168.0,28166.0,0.0121]
[1680730829740,0.0085,28168.0,28166.0,0.0121]
[1680730829852,0.0145,28168.0,28166.0,0.0131]
[1680730831948,0.01471,28168.0,28166.0,0.0131]
[1680730832158,0.45029758,28168.0,28166.0,0.0131]
[1680730832572,0.01812337,28167.0,28166.0,0.0131]
[1680730833217,0.01812337,28167.0,28166.0,0.0121]
[1680730833532,0.01812337,28167.0,28166.0,0.0131]
[1680730834906,0.37180525,28167.0,28166.0,0.0121]
[1680730835113,0.37801525,28167.0,28166.0,0.0131]
[1680730839007,0.02433337,28167.0,28166.0,0.0131]
[1680730839217,0.02412337,28167.0,28166.0,0.0131]
[1680730839967,0.07423337,28167.0,28166.0,0.0131]
[1680730840076,0.07618937,28167.0,28166.0,0.0131]
[1680730840282,0.02412337,28167.0,28166.0,0.0131]
[1680730845607,0.006,28167.0,28166.0,0.0131]
[1680730846349,0.36306595,28167.0,28166.0,0.0131]
[1680730846556,0.36327595,28167.0,28166.0,0.0131]
[1680730847123,0.41578195,28167.0,28166.0,0.0131]
[1680730847313,0.36327595,28167.0,28166.0,0.0131]
[1680730847690,0.37177595,28167.0,28166.0,0.0131]
[1680730856053,0.42345195,28167.0,28166.0,0.0131]
[1680730856256,0.37177595,28167.0,28166.0,0.0131]
[1680730856456,0.42350695,28167.0,28166.0,0.0131]
[1680730856698,0.37177595,28167.0,28166.0,0.0131]
[1680730860081,0.01471,28167.0,28166.0,0.0131]
[1680730860295,0.0145,28167.0,28166.0,0.0131]
[1680730860533,0.072143,28167.0,28166.0,0.0131]
[1680730862538,0.44242526,28167.0,28166.0,0.0131]
[1680730862751,0.44263526,28167.0,28166.0,0.0131]
[1680730869350,0.79734582,28167.0,28166.0,0.0131]
[1680730869549,0.82243989,28167.0,28166.0,0.0131]
[1680730870476,0.79734582,28167.0,28166.0,0.0131]
[1680730870679,0.79734582,28167.0,28166.0,0.001]
[1680730871911,0.73970282,28167.0,28166.0,0.001]
[1680730872500,0.79331182,28167.0,28166.0,0.001]
[1680730874174,0.051,28166.0,28163.0,0.0299609]
[1680730874397,0.40630856,28164.0,28160.0,0.0232]
[1680730874639,0.051367,28162.0,28160.0,0.0232]
[1680730874865,0.35471056,28161.0,28160.0,0.0232]
[1680730875088,0.41551256,28161.0,28160.0,0.0232]
[1680730875509,0.44098733,28161.0,28160.0,0.0232]
[1680730876550,0.41551256,28161.0,28160.0,0.0232]
[1680730876759,0.41551256,28161.0,28160.0,0.0252]
[1680730876889,0.41551256,28161.0,28160.0,0.0232]
[1680730877089,0.41551256,28161.0,28160.0,0.0252]
[1680730877090,0.85943275,28161.0,28160.0,0.0252]
[1680730877553,0.84143275,28161.0,28160.0,0.0471]
[1680730877789,0.85943275,28161.0,28160.0,0.0491]
[1680730877966,0.84143275,28161.0,28160.0,0.0471]
[1680730878106,0.85943275,28161.0,28160.0,0.0491]
[1680730878503,0.84143275,28161.0,28160.0,0.0471]
[1680730878738,0.85943275,28161.0,28160.0,0.0491]
[1680730879703,0.84143275,28161.0,28160.0,0.0471]
[1680730879910,0.85943275,28161.0,28160.0,0.0491]
[1680730880111,0.84143275,28161.0,28160.0,0.0471]
[1680730880307,0.85943275,28161.0,28160.0,0.0491]
[1680730880506,0.84164275,28161.0,28160.0,0.0471]
[1680730880915,0.85964275,28161.0,28160.0,0.0491]
[1680730881128,0.84164275,28161.0,28160.0,0.0471]
[1680730881327,0.85964275,28161.0,28160.0,0.0491]
[1680730881530,0.84143275,28161.0,28160.0,0.0471]
[1680730882943,0.85943275,28161.0,28160.0,0.0491]
[1680730883185,0.84143275,28161.0,28160.0,0.0471]
[1680730883383,0.84143275,28161.0,28160.0,0.0491]
[1680730883384,0.85943275,28161.0,28160.0,0.0491]
[1680730883935,0.85964275,28161.0,28160.0,0.0491]
[1680730884143,0.85943275,28161.0,28160.0,0.0491]
[1680730884354,0.84143275,28161.0,28160.0,0.0471]
[1680730884654,0.85943275,28161.0,28160.0,0.0491]
[1680730885477,0.84143275,28161.0,28160.0,0.0471]
[1680730885718,0.85943275,28161.0,28160.0,0.0491]
[1680730885913,0.84143275,28161.0,28160.0,0.0471]
[1680730886113,0.85943275,28161.0,28160.0,0.0491]
[1680730886521,0.84143275,28161.0,28160.0,0.0471]
[1680730886725,0.85943275,28161.0,28160.0,0.0491]
[1680730886934,0.84143275,28161.0,28160.0,0.0471]
[1680730887158,0.85943275,28161.0,28160.0,0.0491]
[1680730887372,0.85964275,28161.0,28160.0,0.0491]
[1680730887781,0.84164275,28161.0,28160.0,0.0471]
[1680730888195,0.84143275,28161.0,28160.0,0.0471]
[1680730888844,0.85943275,28161.0,28160.0,0.0491]
[1680730889072,0.84143275,28161.0,28160.0,0.0471]
[1680730889294,0.85943275,28161.0,28160.0,0.0491]
[1680730889495,0.84143275,28161.0,28160.0,0.0471]
[1680730889694,0.85943275,28161.0,28160.0,0.0491]
[1680730889899,0.84143275,28161.0,28160.0,0.0471]
[1680730890662,0.43351256,28161.0,28160.0,0.0491]
[1680730890868,0.43372256,28161.0,28160.0,0.0491]
[1680730891078,1.14554991,28161.0,28160.0,0.0491]
[1680730891274,0.73372256,28161.0,28160.0,0.0491]
[1680730891474,1.11072481,28161.0,28160.0,0.0471]
[1680730891894,1.12872481,28161.0,28160.0,0.0471]
[1680730892123,1.11072481,28161.0,28160.0,0.0471]
[1680730892268,0.73372256,28161.0,28160.0,0.0491]
[1680730892665,1.0872592,28161.0,28160.0,0.0491]
[1680730893074,1.20776052,28161.0,28160.0,0.0491]